Cogmind - Beta 15 @@@ ROGUE MODE // 2025.06.14 @ 16:23:50 Player: Storm Mk9 Result: Destroyed by G-67 Veteran with Plasma Rifle Performance ------------- Evolutions (5) 2500 Regions Visited (11) 2200 Robots Destroyed (118) 590 Value Destroyed (4942) 4942 Prototype IDs (21) 420 Alien Tech Used (0) 0 Bonus (2771) 2771 TOTAL SCORE: 13423 Bonus ------- High Alert Combat Kills 456 Follower Combat Kills 1748 Built Enhanced Grunts 300 A7 Reached Mainframe 300 Friendly Fire -33 Cogmind --------- Core Integrity 0/1000 Matter 415/450 Energy 100/100 System Corruption 28% Temperature Cool (12) Movement Walking (116) Location -5/Factory Parts ------- > --- POWER (2) -------- (None) > --- PROPULSION (4) --- FC Exoskeleton > --- UTILITY (8) ------ Medium Storage Unit Compact Matter Pod > --- WEAPON (3) ------- Gauss Rifle > --- INVENTORY (10) --- (None) Peak State ------------ > --- POWER ------------ Multi-Quantum Reactor > --- PROPULSION ------- FC Exoskeleton > --- UTILITY ---------- Armored Scrap Engine Cryofiber Web Advanced Heat Sink Medium Storage Unit Advanced Targeting Computer Centrium Medium Armor Plating Experimental Thermal Shield > --- WEAPON ----------- Hpw. Electro Construct/G Thermal Neutron Construct/C Energy Neutron Construct/C > --- INVENTORY -------- Compact Matter Pod Advanced Particle Charger Hardened Medium Armor Plating Hardened Medium Armor Plating Improved Heavy Armor Plating Experimental Thermal Shield EM Shield Improved Grenade Launcher [Rating: 108] Favorites ----------- Power Constructs Engine Ion Engine Power Core Light Nuclear Core Reactor Constructs Propulsion Carbon-fiber Leg Treads Armored Treads Leg Carbon-fiber Leg Utility Advanced Targeting Computer Device Armored Scrap Engine Storage Small Storage Unit Processor Advanced Targeting Computer Hackware Hacking Suite Protection Hardened Medium Armor Plating Weapon Constructs Energy Gun Constructs Energy Cannon Constructs Ballistic Gun Improved Assault Rifle Launcher Improved Grenade Launcher Special Weapon Plasma Cutter Build | -11 -10 -10 -10 -8 -8 -8 -6 -6 -6 -6 -5 ------- Run | Yrd Mat Min Sub Mat Sto Rec Fac Ext Cet Arc Fac Slots Evolved 10 | . . . . 4 . . 4 . . . 2 Power 1 | . . . . 1 . . . . . . . Propulsion 2 | . . . . 1 . . . . . . 1 Utility 6 | . . . . 2 . . 3 . . . 1 Weapon 1 | . . . . . . . 1 . . . . Parts Attached 79 | 7 1 1 2 16 16 3 11 2 1 3 16 Power 11 | 1 . . . 3 4 2 . . . . 1 Engine 8 | 1 . . . 3 2 2 . . . . . Core 2 | . . . . . 2 . . . . . . Reactor 1 | . . . . . . . . . . . 1 Propulsion 12 | 2 . . . 6 4 . . . . . . Treads 1 | . . . . 1 . . . . . . . Leg 11 | 2 . . . 5 4 . . . . . . Wheel . | . . . . . . . . . . . . Hover . | . . . . . . . . . . . . Flight . | . . . . . . . . . . . . Utility 40 | 2 . . . 4 5 1 11 2 1 3 11 Device 18 | 1 . . . 1 4 1 5 1 . 2 3 Storage 4 | 1 . . . . . . 1 . . 1 1 Processor 2 | . . . . 1 1 . . . . . . Hackware 1 | . . . . . . . 1 . . . . Protection 15 | . . . . 2 . . 4 1 1 . 7 Artifact . | . . . . . . . . . . . . Weapon 16 | 2 1 1 2 3 3 . . . . . 4 Energy Gun 8 | 2 . . 1 1 1 . . . . . 3 Energy Cannon 1 | . . . . . 1 . . . . . . Ballistic Gun 2 | . . . . 1 . . . . . . 1 Ballistic Cannon . | . . . . . . . . . . . . Launcher 3 | . . 1 1 1 . . . . . . . Special Weapon 2 | . 1 . . . 1 . . . . . . Impact Weapon . | . . . . . . . . . . . . Slashing Weapon . | . . . . . . . . . . . . Piercing Weapon . | . . . . . . . . . . . . Special Melee Weapon . | . . . . . . . . . . . . Unidentified Prototypes 9 | . . . . 2 2 1 1 . 1 2 . Parts Lost 46 | . . . . 7 7 1 2 3 1 . 25 Power 9 | . . . . 1 4 1 . . . . 3 Propulsion 6 | . . . . 3 . . . . 1 . 2 Utility 20 | . . . . 2 2 . 1 2 . . 13 Weapon 11 | . . . . 1 1 . 1 1 . . 7 Highest Loss Streak 17 | . . . . 4 3 1 1 1 1 . 17 To Critical Strikes 1 | . . . . . . . . . 1 . . Average Backups 7 | 3 5 6 7 7 7 5 7 8 8 8 6 Power . | 1 2 2 2 1 1 . . . . . . Propulsion . | . . . . . . . . . . . . Utility 3 | . . 1 1 1 1 1 5 6 7 7 5 Weapon 2 | 1 2 3 4 4 3 2 2 2 1 1 . Tool/Special . | . . . . . . . . . . . . Unused Backups 12 | . . . . . 2 5 2 2 . 1 . Power 1 | . . . . . . 1 . . . . . Propulsion 1 | . . . . . . 1 . . . . . Utility 3 | . . . . . 1 . 1 . . 1 . Weapon 7 | . . . . . 1 3 1 2 . . . Tool/Special . | . . . . . . . . . . . . Average Slot Usage (%) 78 | . 100 100 100 87 97 83 62 66 73 73 63 Engine 7 | . 14 14 14 14 12 10 3 3 . . . Core 1 | . . . . . 4 1 2 3 2 . . Reactor 1 | . . . . . . . . . 3 6 4 Leg 13 | . 28 28 28 18 27 21 3 6 6 1 1 Device 14 | . 14 14 14 7 8 12 13 20 20 20 20 Storage 7 | . 14 14 14 9 8 9 6 6 6 6 5 Processor 6 | . . . . 7 9 9 6 6 6 6 4 Protection 5 | . . . . 9 8 . 6 5 6 5 5 Energy Gun 7 | . 23 26 26 10 7 9 2 1 8 8 4 Energy Cannon 3 | . . . . . 3 6 5 . . 4 5 Ballistic Gun 2 | . . . . 5 6 . . . 10 5 1 Ballistic Cannon 1 | . . . . . . . . 11 . . . Special Weapon 1 | . 4 . . 1 . 2 2 . . . . Peak Build Rating 108 | 9 9 10 9 26 37 46 86 87 92 99 108 Average Rating 56 | 5 9 9 9 19 31 37 71 82 88 97 94 On Entrance 40 | . 9 9 9 9 26 32 36 81 86 92 99 Naked Turns . | . . . . . . . . . . . . Heaviest Build 68 | 14 14 17 14 38 38 31 47 62 63 63 68 Greatest Support 96 | 20 20 20 20 50 50 45 60 96 96 54 82 Greatest Overweight (x) 3 | . . . . 3 . . 1 . 1 1 1 Average Overweight (x) . | . . . . . . . . . . 1 . Largest Inventory Capacity 10 | 8 8 8 8 8 8 8 10 10 10 10 10 Average Capacity 8 | 7 8 8 8 8 7 8 9 10 10 10 10 Most Carried 10 | 5 6 7 7 8 8 8 10 10 10 10 10 Average Carried 7 | 3 5 6 7 7 7 5 7 8 9 9 7 Final Capacity 10 | 8 8 8 8 8 8 8 10 10 10 10 10 Final Carried 10 | 4 6 7 7 8 6 3 9 9 10 10 . Scrap Engine Consumption 118 | . . . . . . 22 39 23 7 5 22 Constructs Created 5 | . . . . . . 3 1 1 . . . Constructs Modified 46 | . . . . . . 4 19 8 6 4 5 Class Distribution -------------------- 50% | Mutant 34% | Construct 15% | Commander-Construct Dominant Class ---------------- Mutant | -10/Materials Mutant | -10/Mines Mutant | -10/Subcaves Mutant | -8/Materials Mutant | -8/Storage Mutant | -8/Recycling Construct | -6/Factory Construct | -6/Extension Construct | -6/Cetus Commander-Construct | -6/Archives Construct | -5/Factory Resources | -11 -10 -10 -10 -8 -8 -8 -6 -6 -6 -6 -5 ----------- Run | Yrd Mat Min Sub Mat Sto Rec Fac Ext Cet Arc Fac Matter Collected 2325 | 270 . 20 . 401 667 60 203 318 57 87 242 Remotely . | . . . . . . . . . . . . Salvage Created 4847 | 198 . 40 24 633 1323 141 446 1168 42 110 722 Parts 213 | 11 . 1 4 32 55 3 16 59 2 3 27 Haulers Intercepted 2 | . . . . 2 . . . . . . . Recyclers Shooed 3 | . . . . 1 2 . . . . . . Parts Field Recycled . | . . . . . . . . . . . . Retrieved Matter . | . . . . . . . . . . . . Parts Self-Destructed 3 | . . . 3 . . . . . . . . Prevented . | . . . . . . . . . . . . Kills | -11 -10 -10 -10 -8 -8 -8 -6 -6 -6 -6 -5 ------- Run | Yrd Mat Min Sub Mat Sto Rec Fac Ext Cet Arc Fac Combat Hostiles Destroyed 94 | . . 2 4 12 31 3 10 18 1 1 12 Guns 23 | . . 1 1 4 9 1 3 . 1 1 2 Cannons 43 | . . . . . 12 1 6 18 . . 6 AOE 24 | . . 1 3 8 8 . . . . . 4 Classes Destroyed 21 | 2 . 2 1 6 3 1 1 3 . . 2 Worker 3 | . . . . 1 1 . . . . . 1 Builder 5 | . . . . 4 . . . . . . 1 Tunneler 5 | 5 . . . . . . . . . . . Hauler 2 | . . . . 2 . . . . . . . Recycler 4 | 1 . . . 1 1 . . 1 . . . Mechanic 1 | . . . . 1 . . . . . . . Operator 3 | . . . . . 1 . . 1 . 1 . Watcher 1 | . . . . . . . . 1 . . . Swarmer 11 | . . . 4 . 3 . 2 2 . . . Grunt 43 | . . 1 . 9 19 . 4 5 . . 5 Brawler 3 | . . . . . 1 . . 1 . . 1 Protector 1 | . . . . . 1 . . . . . . Sentry 20 | . . . . 2 6 1 . 9 . 1 1 Specialist 2 | . . . . . . . . . . . 2 Hunter 4 | . . . . 1 1 . 1 . . . 1 Programmer 4 | . . . . . . . 3 . . . 1 Heavy 1 | . . . . . . . . . . . 1 Behemoth 1 | . . . . . . . . 1 . . . Cetus Guard 1 | . . . . . . . . . 1 . . Subdweller 2 | . . . . . . 2 . . . . . Assembled 1 | . . 1 . . . . . . . . . Butcher 1 | . . . . . . . . 1 . . . Best Kill Streak 13 | 5 . 1 4 13 5 1 3 7 1 1 3 Combat Bots Only 7 | . . 1 4 7 5 1 3 7 1 1 3 Max Kills in Single Turn 3 | 2 . 1 2 3 2 1 1 2 1 1 3 Gunslinging 1 | . . . . . 1 . . . . . . Exploded 3 | . . 1 2 2 2 . . . . . 3 Melee . | . . . . . . . . . . . . Uniques/NPCs Destroyed . | . . . . . . . . . . . . Combat | -11 -10 -10 -10 -8 -8 -8 -6 -6 -6 -6 -5 -------- Run | Yrd Mat Min Sub Mat Sto Rec Fac Ext Cet Arc Fac Hostile Shots Fired 1062 | . . 3 14 81 122 4 55 196 11 . 576 Missed 317 | . . 2 3 20 34 1 20 76 3 . 158 Hits 745 | . . 1 11 61 88 3 35 120 8 . 418 Melee 13 | . . . . . 2 . . . . . 11 Projectile 732 | . . 1 11 61 86 3 35 120 8 . 407 AOE 2 | . . . . . . . . . . . 2 Critical Strikes 42 | . . . . 4 6 . . 3 4 . 25 Damage Taken 12973 | . . 20 111 1086 1565 69 641 1556 247 45 7633 Core 1532 | . . 1 14 157 142 15 56 140 . . 1007 Absorbed by Shields 157 | . . . . . . 16 . 103 38 . . Ignored by Resistances 442 | . . . . . . . 4 . . . 438 Regen/Repaired (Parts) 2075 | . . . . . 361 10 279 477 224 . 724 Core Remaining (%) 78 | 100 . . 94 . . 42 . . . 76 . Volleys Fired 299 | 11 1 4 5 39 82 9 31 49 8 3 57 Largest 3 | 2 1 2 2 2 2 2 2 3 3 3 3 Hottest 227 | 90 100 90 80 100 100 96 213 227 145 145 155 Shots Fired 548 | 22 1 7 8 65 142 18 48 99 23 9 106 Gun 267 | 22 . 6 6 53 66 9 14 1 23 8 59 Cannon 245 | . . . . . 56 9 34 98 . 1 47 Launcher 22 | . . 1 2 8 11 . . . . . . Special 14 | . 1 . . 4 9 . . . . . . Kinetic 190 | . . . . 12 15 . 17 99 23 5 19 Thermal 272 | 22 1 6 3 27 115 18 27 . . 4 49 Explosive 22 | . . 1 2 8 11 . . . . . . Electromagnetic 64 | . . . 3 18 1 . 4 . . . 38 Robot Hit Streak 61 | 9 . 10 11 11 61 11 27 16 11 7 11 Robot Miss Streak 6 | 2 . . 1 2 2 2 6 5 2 1 2 Penetration Max 2 | . . . . . . . . 2 . . . Secondary Targets 1 | . . . . . 1 . . . . . . Max Gunslinging Chain 1 | . . . . . 1 . . . . . . Shots Hit Robots 389 | 16 . 6 5 47 109 12 28 70 17 7 72 Core Hits 216 | 7 . 4 5 40 56 3 14 37 10 4 36 Critical Kills 2 | . . . . . . 1 . . . . 1 Critical Parts Destroyed 3 | . . . . . . . . . . . 3 Critical Strikes 16 | 3 . 1 . . 3 1 1 3 . . 4 Burn 7 | 3 . 1 . . 3 . . . . . . Meltdown 1 | . . . . . . 1 . . . . . Destroy 4 | . . . . . . . . . . . 4 Blast 4 | . . . . . . . 1 3 . . . Melee Attacks . | . . . . . . . . . . . . Impact . | . . . . . . . . . . . . Slashing . | . . . . . . . . . . . . Piercing . | . . . . . . . . . . . . Sneak Attacks . | . . . . . . . . . . . . Combat Hostiles . | . . . . . . . . . . . . Follow-up Attacks . | . . . . . . . . . . . . Damage Inflicted 14109 | 201 . 115 196 2128 3626 295 1117 3061 441 175 2754 Guns 3679 | 201 . 70 43 523 924 101 171 21 441 138 1046 Cannons 6284 | . . . . . 1429 194 946 2647 . 37 1031 Explosions 3858 | . . 45 153 1581 1273 . . 393 . . 413 Melee . | . . . . . . . . . . . . Ramming 264 | . . . . . . . . . . . 264 Kinetic 4048 | . . . . 130 144 . 230 2668 441 102 333 Thermal 6073 | 201 . 70 33 508 2209 295 847 393 . 73 1444 Explosive 2777 | . . 45 153 1306 1273 . . . . . . Electromagnetic 947 | . . . 10 184 . . 40 . . . 713 Impact . | . . . . . . . . . . . . Slashing . | . . . . . . . . . . . . Piercing . | . . . . . . . . . . . . Highest Corruption 27 | . . . . . . . 2 2 2 2 27 Average Corruption 2 | . . . . . . . 1 2 2 1 7 Corruption Purged 2 | . . . . . . . . . . 2 . Corruption Blocked . | . . . . . . . . . . . . Effects 47 | . . . . . . . 5 14 6 3 19 Message Errors 10 | . . . . . . . . 3 1 2 4 Matter Fused 7 | . . . . . . . 1 5 . . 1 Heat Flow Errors 4 | . . . . . . . 1 2 . . 1 Energy Discharges 5 | . . . . . . . 1 1 2 . 1 Data Loss (minor) 10 | . . . . . . . 1 1 1 . 7 Data Loss (major) 2 | . . . . . . . . 1 . 1 . Alerts 3 | . . . . . . . . 1 1 . 1 Misdirections 1 | . . . . . . . . . . . 1 Weapon Failures 5 | . . . . . . . 1 . 1 . 3 Overload Shots . | . . . . . . . . . . . . Overflow Damage 128 | . . . 12 28 33 . 6 12 . . 37 Projectiles 79 | . . . . . 29 . 6 12 . . 32 Explosions 44 | . . . 12 28 4 . . . . . . Melee 5 | . . . . . . . . . . . 5 Knockbacks 10 | . . . . . . . 2 8 . . . Impact . | . . . . . . . . . . . . Kinetic 9 | . . . . . . . 2 7 . . . Secondary 1 | . . . . . . . . 1 . . . Self-Inflicted Damage 462 | . . 4 31 118 230 . . 49 . . 30 Shots 15 | . . 1 1 3 8 . . 1 . . 1 Rammed . | . . . . . . . . . . . . Targets Rammed 50 | . . . . . . . . . . . 50 Kicked 50 | . . . . . . . . . . . 50 Crushed . | . . . . . . . . . . . . Highest Temperature 525 | 262 20 99 . 478 210 4 324 525 . . 283 Average Temperature 103 | 119 10 53 . 142 50 2 127 163 . . 106 Received Heat Transfer 3444 | . . 9 6 405 585 14 90 744 . . 1591 Effects 6 | . . . . 3 . . 3 . . . . Shutdowns 1 | . . . . 1 . . . . . . . Energy Bleed 3 | . . . . . . . 3 . . . . Damage (minor) 1 | . . . . 1 . . . . . . . Damage (major) 1 | . . . . 1 . . . . . . . Siege Activations . | . . . . . . . . . . . . Martial Activations . | . . . . . . . . . . . . Shielding Activations . | . . . . . . . . . . . . Robots Disrupted . | . . . . . . . . . . . . Combat Hostiles . | . . . . . . . . . . . . Robots Corrupted . | . . . . . . . . . . . . Combat Hostiles . | . . . . . . . . . . . . Parts Fried 2 | . . . . . . . . . . . 2 Impact Corruptions 1 | . . . . . . . . . . . 1 Robots Melted 4 | . . . . . 2 1 1 . . . . Combat Hostiles 4 | . . . . . 2 1 1 . . . . Parts Melted 27 | 6 . . . 1 11 4 5 . . . . Heat Transferred 8286 | 755 . 260 75 896 4078 522 950 350 . . 400 Parts Sabotaged 1 | . . . . . . . . . . . 1 Parts Stolen . | . . . . . . . . . . . . Parts Stripped . | . . . . . . . . . . . . Power Chain Reactions 6 | . . . . 1 . . . 3 . . 2 Alert | -11 -10 -10 -10 -8 -8 -8 -6 -6 -6 -6 -5 ------- Run | Yrd Mat Min Sub Mat Sto Rec Fac Ext Cet Arc Fac Maximum Alert Level 3 | . . . . 1 2 1 . 1 . . 3 Low Security (%) 77 | 100 100 100 . 97 47 89 100 80 100 100 30 Level 1 10 | . . . . 2 31 10 . 19 . . 5 Level 2 4 | . . . . . 20 . . . . . 8 Level 3 6 | . . . . . . . . . . . 55 Level 4 . | . . . . . . . . . . . . Level 5 . | . . . . . . . . . . . . High Security . | . . . . . . . . . . . . Max Security . | . . . . . . . . . . . . Peak Influence 1089 | 20 18 35 . 208 685 249 62 256 130 190 1089 Initial 210 | . . . . 39 39 210 . 17 130 . . Average 152 | 4 2 7 . 99 220 39 19 92 52 68 622 Influence Increases 4984 | 30 35 56 125 415 1006 92 314 1031 125 240 1515 Destroy 0b10 Robot/C 2520 | . . 20 80 240 600 60 200 560 80 80 600 Destroy 0b10 Robot/NC 180 | 30 . . . 45 20 . . 30 5 10 40 Destroy Leader 452 | . . 10 . 54 150 . 50 64 . . 124 Allied During Kill 799 | . . . . . . 9 . 258 17 90 425 Successful Hack 183 | . 20 . . 19 24 21 40 50 9 . . Disable Machine 240 | . 15 . . . 105 . . 30 . 60 30 Anti-Garrison Action 150 | . . . . . . . . . . . 150 Destroy Structure 280 | . . 11 . 57 62 2 9 39 14 . 86 Partial Spotted 30 | . . . . . 15 . 15 . . . . Lose Combat Pursuer 150 | . . 15 45 . 30 . . . . . 60 Influence Decreases 4103 | 30 35 55 51 396 560 632 277 835 358 240 634 Entered New Map 545 | . . . 1 36 55 330 . 20 103 . . Time Decay 2347 | 30 35 55 50 290 285 173 266 495 144 220 304 Lost Part 451 | . . . . 70 70 10 11 30 10 . 250 Lost Ally 361 | . . . . . . 20 . 140 101 20 80 Purge Threat 399 | . . . . . 150 99 . 150 . . . Squads Dispatched 29 | . . . . 3 9 . 3 2 . . 12 Investigation 5 | . . . . . 3 . 1 . . . 1 Extermination 4 | . . . . . . . 2 . . . 2 Reinforcement 14 | . . . . 3 3 . . 2 . . 6 Assault 6 | . . . . . 3 . . . . . 3 Garrison . | . . . . . . . . . . . . Intercept . | . . . . . . . . . . . . Searches Triggered . | . . . . . . . . . . . . Construction Impeded 4 | . . . . 1 . . . 2 . . 1 Haulers Reinforced . | . . . . . . . . . . . . Active Scanning Responses . | . . . . . . . . . . . . Cargo Convoy Interrupts 1 | . . . . . . . 1 . . . . Stealth | -11 -10 -10 -10 -8 -8 -8 -6 -6 -6 -6 -5 --------- Run | Yrd Mat Min Sub Mat Sto Rec Fac Ext Cet Arc Fac Distress Signals 7 | . . 2 . 1 2 . 1 . 1 . . Communications Jammed . | . . . . . . . . . . . . Distress Signals . | . . . . . . . . . . . . Times Spotted 181 | . 1 4 5 17 41 7 22 31 4 4 45 Peak Tracking Total 12 | . 2 2 6 6 7 2 5 7 5 2 12 Tactical Retreats 8 | . . 2 1 . 1 . . . . . 4 Traps | -11 -10 -10 -10 -8 -8 -8 -6 -6 -6 -6 -5 ------- Run | Yrd Mat Min Sub Mat Sto Rec Fac Ext Cet Arc Fac Traps Triggered 9 | . . . . . 1 . 4 1 . . 3 Indirectly . | . . . . . . . . . . . . Trap Hack Attempts . | . . . . . . . . . . . . Triggered . | . . . . . . . . . . . . Disarmed . | . . . . . . . . . . . . Reprogrammed . | . . . . . . . . . . . . Reused . | . . . . . . . . . . . . Traps Extracted . | . . . . . . . . . . . . Installed . | . . . . . . . . . . . . Triggered . | . . . . . . . . . . . . Machines | -11 -10 -10 -10 -8 -8 -8 -6 -6 -6 -6 -5 ---------- Run | Yrd Mat Min Sub Mat Sto Rec Fac Ext Cet Arc Fac Machines Disabled 18 | . 1 . 1 . 7 . . 2 . 4 3 Max in Single Turn 1 | . 1 . 1 . 1 . . 1 . . 1 Garrison Access 3 | . . . . . 1 . 1 . . . 1 Machines Repaired . | . . . . . . . . . . . . Machines Dismantled 2 | . . . . . 2 . . . . . . Machines Sabotaged . | . . . . . . . . . . . . Overloaded Fab Kills . | . . . . . . . . . . . . Hacking | -11 -10 -10 -10 -8 -8 -8 -6 -6 -6 -6 -5 --------- Run | Yrd Mat Min Sub Mat Sto Rec Fac Ext Cet Arc Fac Machines Accessed 59 | . 4 . . 4 11 8 10 15 3 . 4 Terminals 43 | . 4 . . 3 8 5 3 14 3 . 3 Fabricators 4 | . . . . . . . 4 . . . . Repair Stations 3 | . . . . 1 2 . . . . . . Recycling Units 6 | . . . . . . 2 2 1 . . 1 Scanalyzers . | . . . . . . . . . . . . Garrison Access 2 | . . . . . 1 . 1 . . . . Total Hacks 139 | . 16 . . 10 26 21 17 35 6 . 8 Successful 63 | . 8 . . 3 9 15 10 15 3 . . Failed 76 | . 8 . . 7 17 6 7 20 3 . 8 Catastrophic 11 | . 1 . . 1 3 . 1 4 . . 1 Database Lockouts . | . . . . . . . . . . . . Manual 57 | . 6 . . 4 5 7 8 21 1 . 5 Terminals 111 | . 16 . . 8 19 15 8 33 6 . 6 Fabricators 6 | . . . . . . . 6 . . . . Repair Stations 8 | . . . . 2 6 . . . . . . Recycling Units 9 | . . . . . . 3 2 2 . . 2 Scanalyzers . | . . . . . . . . . . . . Garrison Access 2 | . . . . . 1 . 1 . . . . Terminal Hacks 29 | . 6 . . 1 3 8 1 7 3 . . Record 3 | . . . . . . 1 . . 2 . . Robot Schematic 1 | . . . . . . 1 . . . . . Robot Analysis 1 | . . . . . . . . 1 . . . Prototype ID Bank 4 | . 2 . . . . 2 . . . . . Open Door 6 | . . . . . 1 . . 4 1 . . Branch Access Points 1 | . . . . 1 . . . . . . . Emergency Access Points 2 | . 2 . . . . . . . . . . Terminal Index 1 | . . . . . . . . 1 . . . Unreport Threat 3 | . . . . . 1 1 . 1 . . . Locate Traps 2 | . . . . . 1 . 1 . . . . Security Status 1 | . . . . . . 1 . . . . . Hauler Manifests 1 | . 1 . . . . . . . . . . Zone Layout 1 | . 1 . . . . . . . . . . Release Object 2 | . . . . . . 2 . . . . . Fabricator Hacks 1 | . . . . . . . 1 . . . . Build 1 | . . . . . . . 1 . . . . Repair Station Hacks 4 | . . . . . 4 . . . . . . Scan Component 2 | . . . . . 2 . . . . . . Repair 2 | . . . . . 2 . . . . . . Recycling Unit Hacks 5 | . . . . . . 2 2 1 . . . Report Inventory 5 | . . . . . . 2 2 1 . . . Scanalyzer . | . . . . . . . . . . . . Garrison Access Hacks 2 | . . . . . 1 . 1 . . . . Seal Access 2 | . . . . . 1 . 1 . . . . Unauthorized Hacks 22 | . 2 . . 2 1 5 5 7 . . . Terminals 19 | . 2 . . 2 1 5 2 7 . . . Track 6 | . 1 . . . . 2 1 2 . . . Botnet 12 | . 1 . . 2 1 3 1 4 . . . Operators 1 | . . . . . . . . 1 . . . Fabricators 3 | . . . . . . . 3 . . . . Liberate 3 | . . . . . . . 3 . . . . Repair Stations . | . . . . . . . . . . . . Recycling Units . | . . . . . . . . . . . . Scanalyzers . | . . . . . . . . . . . . Garrison Access . | . . . . . . . . . . . . Data Cores Recovered 1 | . . . . . . . . 1 . . . Used 1 | . . . . . . . . 1 . . . Hacking Detections 45 | . 4 . . 4 8 5 5 13 2 . 4 Full Trace Events 3 | . . . . . 2 . 1 . . . . Feedback Events . | . . . . . . . . . . . . Feedback Blocked . | . . . . . . . . . . . . Robot Schematics Acquired 1 | . . . . . . 1 . . . . . Robots Built . | . . . . . . . . . . . . Authchips . | . . . . . . . . . . . . Time . | . . . . . . . . . . . . Total Robot Build Rating . | . . . . . . . . . . . . Part Schematics Acquired . | . . . . . . . . . . . . Parts Built 2 | . . . . . . . 2 . . . . Authchips . | . . . . . . . . . . . . Time 64 | . . . . . . . 64 . . . . Total Part Build Rating 16 | . . . . . . . 16 . . . . Parts Repaired 2 | . . . . . 2 . . . . . . Time 64 | . . . . . 64 . . . . . . Parts Recycled . | . . . . . . . . . . . . Recycled Matter . | . . . . . . . . . . . . Retrieved Matter . | . . . . . . . . . . . . Retrieved Components . | . . . . . . . . . . . . Parts Scanalyzed . | . . . . . . . . . . . . Part Schematics Acquired . | . . . . . . . . . . . . Parts Damaged . | . . . . . . . . . . . . Bothacking | -11 -10 -10 -10 -8 -8 -8 -6 -6 -6 -6 -5 ------------ Run | Yrd Mat Min Sub Mat Sto Rec Fac Ext Cet Arc Fac Used RIF Installer . | . . . . . . . . . . . . Robots Hacked . | . . . . . . . . . . . . Non-combat . | . . . . . . . . . . . . Combat . | . . . . . . . . . . . . Robot Hacks Applied . | . . . . . . . . . . . . Relay Couplers Released 7 | . . . . . . . 3 . . . 4 Machine Destruction 4 | . . . . . . . . . . . 4 Programmers 3 | . . . . . . . 3 . . . . Fabnet Peak Effective % . | . . . . . . . . . . . . Robots Rewired 10 | . . . . . . . . 10 . . . Allies Hacked . | . . . . . . . . . . . . Hacks Repelled . | . . . . . . . . . . . . Allies | -11 -10 -10 -10 -8 -8 -8 -6 -6 -6 -6 -5 -------- Run | Yrd Mat Min Sub Mat Sto Rec Fac Ext Cet Arc Fac Total Allies 25 | . . . . . 2 . . 18 5 . . Largest Group 8 | . . . . . 2 2 1 8 8 7 4 Highest-Rated Group 672 | . . . . . 62 62 28 374 672 672 384 Highest-Rated Ally 159 | . . . . . 31 31 28 159 159 153 96 Total Orders . | . . . . . . . . . . . . Ally Attacks 302 | . . . . . . 32 5 119 25 22 99 Total Damage 8059 | . . . . . . 483 43 2260 768 848 3657 Kills 52 | . . . . . . 6 . 13 4 5 24 Allies Corrupted . | . . . . . . . . . . . . Allies Melted 1 | . . . . . . . . . . . 1 Intel | -11 -10 -10 -10 -8 -8 -8 -6 -6 -6 -6 -5 ------- Run | Yrd Mat Min Sub Mat Sto Rec Fac Ext Cet Arc Fac Active Infowar (turns) 1064 | 21 393 279 100 271 . . . . . . . Terrain 1064 | 21 393 279 100 271 . . . . . . . Robot Analysis Total 1 | . . . . . . . . 1 . . . Derelict Logs Recovered . | . . . . . . . . . . . . Drone Launches . | . . . . . . . . . . . . Drone Recoveries . | . . . . . . . . . . . . Exploration | -11 -10 -10 -10 -8 -8 -8 -6 -6 -6 -6 -5 ------------- Run | Yrd Mat Min Sub Mat Sto Rec Fac Ext Cet Arc Fac Turns Passed 9890 | 119 393 279 100 739 1787 1483 1492 1334 359 604 1201 Spaces Moved 4679 | 52 172 179 71 331 469 893 848 845 156 136 527 Core 15 | 15 . . . . . . . . . . . Treads 422 | . . . . . . . . . . 81 341 Legs 3705 | 37 172 179 71 331 469 789 415 845 156 55 186 Wheels 265 | . . . . . . 104 161 . . . . Hover . | . . . . . . . . . . . . Flight 272 | . . . . . . . 272 . . . . Fastest Speed 50 | 50 120 120 120 105 113 110 66 73 73 196 116 Average Speed 118 | 99 120 120 120 148 115 119 100 73 152 208 168 Slowest Speed 330 | 120 120 120 120 330 123 130 190 73 228 228 196 Overloaded Moves . | . . . . . . . . . . . . Propulsion Burnouts . | . . . . . . . . . . . . Robots Hopped 2 | . . . . . . . 2 . . . . Potential Cave-ins . | . . . . . . . . . . . . Cave-ins Triggered . | . . . . . . . . . . . . Exploration Rate (%) 49 | 4 32 40 12 28 85 99 31 91 71 85 18 Regions Visited 11 Branch Regions 7 Pre-discovered Areas 1 | . . 1 . . . . . . . . . Known Exits Taken 1 | . . . . 1 . . . . . . . Unknown Exits Taken 10 | 1 1 1 1 . 1 1 1 1 1 1 . Scrap Searched . | . . . . . . . . . . . . Spaces Dug 29 | . . 12 . 3 8 1 . 1 . . 4 Terrain Destroyed 217 | . . 12 10 56 74 2 9 41 2 . 11 Melee . | . . . . . . . . . . . . Projectile 54 | . . . . 3 13 2 9 14 2 . 11 AOE 163 | . . 12 10 53 61 . . 27 . . . Terrain Rammed . | . . . . . . . . . . . . Walls Destroyed . | . . . . . . . . . . . . Machines Disabled . | . . . . . . . . . . . . Actions | -11 -10 -10 -10 -8 -8 -8 -6 -6 -6 -6 -5 --------- Run | Yrd Mat Min Sub Mat Sto Rec Fac Ext Cet Arc Fac Total 8425 | 96 355 234 77 500 1516 1300 1435 1464 260 450 738 Wait 3075 | 18 180 48 . 84 894 375 506 511 93 298 68 Move 4664 | 51 171 178 70 330 468 892 843 844 155 135 527 Hop 2 | . . . . . . . 2 . . . . Pick Up 78 | 9 2 1 . 13 11 5 18 3 2 2 12 Fast Attach 17 | 2 . . . 4 5 1 1 . . 4 . Attach 54 | 5 . . . 9 6 3 8 2 . . 21 Detach 1 | . . . . 1 . . . . . . . Swap 52 | . 1 3 2 14 21 1 5 . 1 2 2 Drop 49 | . . . . 6 12 14 7 2 1 6 1 Fire 299 | 11 1 4 5 39 82 9 31 49 8 3 57 Melee . | . . . . . . . . . . . . Ram . | . . . . . . . . . . . . Kick 50 | . . . . . . . . . . . 50 Crush . | . . . . . . . . . . . . Escape Stasis 18 | . . . . . . . 13 5 . . . Rewire 48 | . . . . . . . . 48 . . . Trap . | . . . . . . . . . . . . Miscellaneous 18 | . . . . . 17 . 1 . . . . Route ------- -11/Scrapyard -10/Materials -10/Mines -10/Subcaves (discovered 2 exits: *Mat / *Rec) -8/Materials (discovered 2 exits: [*Fac] / *Sto) -8/Storage (discovered 2 exits: [*Fac] / *Rec) -8/Recycling -6/Factory (discovered 2 exits: *Fac / *Ext) -6/Extension (discovered 2 exits: *Fac / *Cet) -6/Cetus -6/Archives (discovered 2 exits: *Fac / [*Hub]) -5/Factory History --------- Turn | Location | Event 13 | -11/Scrapyard | Discovered new exit (range 15) 120 | -11/Scrapyard | Entered Materials 311 | -10/Materials | Build established: Mutant 441 | -10/Materials | Discovered new exit (range 14) 513 | -10/Materials | Entered Mines 528 | -10/Mines | Assembled infested the area 560 | -10/Mines | Learned location of Storage (-8) 587 | -10/Mines | Received a Rocket Launcher from a helpful Derelict 785 | -10/Mines | Discovered new exit (range 5) 792 | -10/Mines | Entered Subcaves 792 | -10/Subcaves | Discovered new exit (range 14) 878 | -10/Subcaves | Discovered new exit (range 11) 892 | -10/Subcaves | Entered Materials 892 | -8/Materials | Evolved 4 slots: Power x1, Propulsion x1, Utility x2 1194 | -8/Materials | Lost 4 parts (1p2n1u) 1197 | -8/Materials | Destroyed 7 combat bots 1323 | -8/Materials | Identified exit to Storage 1439 | -8/Materials | Discovered new exit (range 16) 1631 | -8/Materials | Entered Storage 2554 | -8/Storage | Repaired Hrd. Medium Armor Plating 3024 | -8/Storage | Discovered new exit (range 11) 3231 | -8/Storage | First assault squad dispatched 3239 | -8/Storage | Repaired Sml. Storage Unit 3274 | -8/Storage | Core integrity fell below 50% 3338 | -8/Storage | Lost 3 parts (2p1u) 3358 | -8/Storage | Met a pair of Derelict thieves 3413 | -8/Storage | Discovered new exit (range 3) 3418 | -8/Storage | Entered Recycling 3418 | -8/Recycling | Accompanied by 2 allies 3936 | -8/Recycling | Discovered new exit (range 15) 4052 | -8/Recycling | Entered Scraplab 4060 | -8/Recycling | Found Prototype Device 4060 | -8/Recycling | Identified Scrap Engine 4901 | -8/Recycling | Entered Factory 4901 | -6/Factory | Accompanied by 1 ally 4901 | -6/Factory | Evolved 4 slots: Utility x3, Weapon x1 5201 | -6/Factory | Fabricated Q-thruster (x2) 5255 | -6/Factory | Build established: Construct 5570 | -6/Factory | Allied Derelicts emerged from ambush trap array 6083 | -6/Factory | Discovered new exit (range 12) 6101 | -6/Factory | Cargo convoy interrupted 6383 | -6/Factory | Discovered new exit (range 14) 6393 | -6/Factory | Entered Extension 6533 | -6/Extension | Rescued a captive Derelict 6534 | -6/Extension | Rescued a captive Derelict 6658 | -6/Extension | Rescued a captive Derelict 6660 | -6/Extension | Rescued a captive Derelict 6779 | -6/Extension | Spotted B-75 Beast 6795 | -6/Extension | Destroyed 7 combat bots 6827 | -6/Extension | Spotted B-75 Beast 6859 | -6/Extension | Destroyed B-75 Beast 6883 | -6/Extension | Lost 4 allies 6992 | -6/Extension | Rescued a captive Derelict 6995 | -6/Extension | Rescued a captive Derelict 7397 | -6/Extension | Rescued A7 7511 | -6/Extension | Rescued a captive Derelict 7665 | -6/Extension | Discovered new exit (range 10) 7666 | -6/Extension | Discovered new exit (range 6) 7727 | -6/Extension | Entered Cetus 7727 | -6/Cetus | Accompanied by 8 allies (A7) 7732 | -6/Cetus | Acquired a Cetus Manufacturing Module code from A7 7747 | -6/Cetus | Build established: Commander-Construct 7757 | -6/Cetus | Spotted Cetus Guard 7757 | -6/Cetus | Spotted Cetus Guard 7759 | -6/Cetus | Spotted Cetus Guard 7777 | -6/Cetus | Destroyed Cetus Guard 7779 | -6/Cetus | Allies destroyed Cetus Guard 7780 | -6/Cetus | Allies destroyed Cetus Guard 7790 | -6/Cetus | Spotted Cetus Guard 7791 | -6/Cetus | Allies destroyed Cetus Guard 7804 | -6/Cetus | Lost 6 allies 7842 | -6/Cetus | Started Cetus Manufacturing Module 7866 | -6/Cetus | Escorted A7 to Cetus Mainframe 7867 | -6/Cetus | Manufactured an Enhanced Grunt 7892 | -6/Cetus | Manufactured an Enhanced Grunt 7917 | -6/Cetus | Manufactured an Enhanced Grunt 7942 | -6/Cetus | Manufactured an Enhanced Grunt 7967 | -6/Cetus | Manufactured an Enhanced Grunt 8028 | -6/Cetus | Discovered new exit (range 15) 8086 | -6/Cetus | Entered Archives 8086 | -6/Archives | Accompanied by 7 allies (A7) 8091 | -6/Archives | Received a hacking code to weaken MAIN.C 8188 | -6/Archives | Found Prototype Device 8189 | -6/Archives | Identified Exp. Thermal Shield 8226 | -6/Archives | Discovered new exit (range 16) 8300 | -6/Archives | Discovered new exit (range 15) 8690 | -6/Archives | Entered Factory 8690 | -5/Factory | Accompanied by 4 allies 8690 | -5/Factory | Evolved 2 slots: Propulsion x1, Utility x1 9086 | -5/Factory | Found Exp. Thermal Shield 9360 | -5/Factory | Build established: Construct 9590 | -5/Factory | First assault squad dispatched 9617 | -5/Factory | Lost 4 parts (2u2w) 9762 | -5/Factory | System corruption reached 10% 9807 | -5/Factory | Core integrity fell below 50% 9871 | -5/Factory | Core integrity fell below 20% 9891 | -5/Factory | Destroyed by G-67 Veteran with Plasma Rifle Last Messages --------------- 09872_ Scrap Engine destroyed. 09874_ Acquired 10 matter. 09875_ Triggered Segregator Trap. 09875_ Arcs of energy rise from the floor. 09875_ Phase Shifter blown off. 09877_ Slug penetrates P-70 Sage. 09877_ Penetrated by Slug. 09878_ Acquired Gauss Rifle. 09879_ System corrupted: Matter fused (-10). 09879_ Door malfunctions. 09882_ Slug penetrates P-70 Sage. 09882_ Slug penetrates Wall. 09884_ System corrupted: Gauss Rifle jammed. 09884_ FC Exoskeleton destroyed. 09884_ FC Exoskeleton core remains intact and functional. 09886_ Slug penetrates Wall. 09888_ Destroyed Imp. Heat Sink. 09888_ Slug penetrates Wall. 09890_ Slug penetrates P-70 Sage. Map ----- +----------------------------------------------------+ | | | | | | | | | ?????????????????????????????????????????????????? | | ?????????????????????????????????????????????????? | | ?????????????????????????????????????????????????? | | ?????????????????????????????????????????????????? | | ?????????????????????????????????????????????????? | | ????????????????????????????#######??????????????? | | ????????????????????????????# ???? #???????? | | ????????????????????????????# #???????? | | ????????????????????????????# """"""" #??##?### | | ????????????????????????????# """"""" #??# """" | | ????????????????????????????# """"""" #??# """" | | ????????????????????????????# "" """" #??# """" | | ??????????????#?????????????# #??# """" | | ??????????????# ????????????# #??# | | ??????????????? ??????????#%%!% #??# | | ???????????????? ?????????#%%%" #??# | | ?????????????????? ????????#%%Y" #??# | | ???????? ?????????? ???????#%%"" #??# % | | ????????? ##########/#############;#############+ | | ???????? ! !% | | ???????? ^^ /%% | | ??????? ^!@ | | ??????? %gpp | | ??????? =* | | ???????? """ ###;;;;;###### T########+####### | | ????????????""" ?# ####?# # | | ??????????""""" # % #????# # | | ??????????? ; h=% *% #????# """ # | | ??????????? """ ; % !#????# """"" # | | ????????????""" g % [ #????# """"" # | | ????????????"""gg #????# # | | ????????? #????# """ # | | ??????????? """ ; #????# ! """"" # | | ????????????""" ; #????# """"" # | | ?????????????"" # #????# # | | ????????????? # #????# # | | ????????????""" ?# #????#! # | | ??????????????" ?##############????############## | | ?????????????????????????????????????????????????? | | ?????????????????????????????????????????????????? | | ?????????????????????????????????????????????????? | | ?????????????????????????????????????????????????? | | ?????????????????????????????????????????????????? | | ?????????????????????????????????????????????????? | | ?????????????????????????????????????????????????? | | ?????????????????????????????????????????????????? | +----------------------------------------------------+ Best States ------------- Heat Dissipation 78 Coolant Potential 65 Energy Generation 44 Energy Capacity 1177 Matter Stores 450 Matter Capacity 450 Sight Range 16 Terrain Scan Range 16 Terrain Scan Density 10 Additional Mass Support 12 Base Temperature (-) 100 Armor Coverage 1200 Resistance: TH 30 Resistance: EM 25 Evasion (%) 60 Targeting Accuracy 8 Recoil Reduction 3 Particle Charging 25 Offensive Hacking 10 Item Schematics ----------------- None Robot Schematics ------------------ B-36 Bruiser | -8/Recycling | Hacked Fabricated ------------ Q-thruster | x2 | -6/Factory | Preloaded Repaired ---------- Hrd. Medium Armor Plating | 1% | -8/Storage Sml. Storage Unit | 18% | -8/Storage Alien Tech Used ----------------- None Achievements -------------- None Challenges ------------ None Game ------ Seed ThrowingOpticalCalibrator Manual? 0 Play Time 02:28:07 Cumulative 44.4 hours Start 2025.06.14 @ 13:13:42 End 2025.06.14 @ 16:23:50 Sessions 5 Manual Loads 0 Difficulty Rogue Special Mode None Game No. 36 Rogue 17 Adventurer 0 Explorer 19 Win Type - Total 0 Types 0/0/0/0/0/0/0/0/0/0 Lore% 40 Gallery% 32 Achievement% 67 Wizard Run 0 Options --------- Layout 1 ASCII 0 Keyboard 0 Movement Mouse Keybinds 0 Fullscreen 2 Font 24/Smallcaps Map View 50x35 Zoom Use 0% Tactical HUD 1 Map Filters NONE Filters NONE Steam SD RUN: f5b1087b-15df-4be6-8e89-bfc21a16c1c3